Cogmind - Beta 14 @@@ ROGUE MODE // 2024.11.24 @ 21:47:37 Player: GFYguy Result: Self-destructed Performance ------------- Evolutions (3) 1500 Regions Visited (6) 1200 Robots Destroyed (9) 45 Value Destroyed (186) 186 Prototype IDs (4) 80 Alien Tech Used (0) 0 Bonus (0) 0 TOTAL SCORE: 3011 Bonus ------- None Cogmind --------- Core Integrity 652/700 Matter 137/300 Energy 76/240 System Corruption 0% Temperature Warm (106) Movement Flying (79) Ox1 Location -7/Storage Parts ------- > --- POWER (2) -------- Nuclear Core > --- PROPULSION (5) --- VTOL Module Cesium-ion Thruster Surge Thruster Surge Thruster > --- UTILITY (4) ------ Medium Storage Unit Gravity Neutralizer Improved Sensor Array Improved Signal Interpreter > --- WEAPON (2) ------- Advanced Beam Rifle > --- INVENTORY (10) --- Surge Thruster Improved Cooling System Small Storage Unit Weight Redist. System Advanced Weight Redist. System Energy Filter Actuator Array Actuator Array Layered Light Armor Plating Heavy Flail Peak State ------------ > --- POWER ------------ Nuclear Core > --- PROPULSION ------- VTOL Module Cesium-ion Thruster Surge Thruster Surge Thruster Surge Thruster > --- UTILITY ---------- Small Storage Unit Gravity Neutralizer Improved Sensor Array Improved Signal Interpreter > --- WEAPON ----------- Advanced Beam Rifle Heavy Ion Cannon > --- INVENTORY -------- Surge Thruster Improved Cooling System Medium Storage Unit Advanced Weight Redist. System Energy Filter Actuator Array Layered Light Armor Plating [Rating: 40] Favorites ----------- Power Ion Engine Engine Ion Engine Power Core Nuclear Core Propulsion Surge Thruster Leg Aluminum Leg Flight Unit Surge Thruster Utility Small Storage Unit Device Weight Redist. System Storage Small Storage Unit Processor Improved Signal Interpreter Protection Propulsion Shielding Weapon Medium Laser Energy Gun Medium Laser Energy Cannon Heavy Ion Cannon Ballistic Gun Autogun Build | -11 -10 -9 -9 -8 -7 -7 ------- Run | Yrd Mat Mat Min Mat Fac Sto Slots Evolved 6 | . . 2 . 2 2 . Power 1 | . . . . 1 . . Propulsion 3 | . . 2 . . 1 . Utility 2 | . . . . 1 1 . Weapon . | . . . . . . . Parts Attached 44 | 6 9 12 1 8 5 3 Power 4 | 1 2 . . 1 . . Engine 3 | 1 2 . . . . . Core 1 | . . . . 1 . . Reactor . | . . . . . . . Propulsion 18 | 2 1 10 . 3 2 . Treads . | . . . . . . . Leg 3 | 2 1 . . . . . Wheel . | . . . . . . . Hover . | . . . . . . . Flight 15 | . . 10 . 3 2 . Utility 10 | 1 1 . 1 2 2 3 Device 5 | . 1 . . 1 1 2 Storage 2 | 1 . . . . . 1 Processor 2 | . . . . 1 1 . Hackware . | . . . . . . . Protection 1 | . . . 1 . . . Artifact . | . . . . . . . Weapon 12 | 2 5 2 . 2 1 . Energy Gun 9 | 2 5 1 . 1 . . Energy Cannon 1 | . . . . . 1 . Ballistic Gun 2 | . . 1 . 1 . . Ballistic Cannon . | . . . . . . . Launcher . | . . . . . . . Special Weapon . | . . . . . . . Impact Weapon . | . . . . . . . Slashing Weapon . | . . . . . . . Piercing Weapon . | . . . . . . . Special Melee Weapon . | . . . . . . . Unidentified Prototypes 2 | . . . . 1 . 1 Parts Lost 3 | . . 2 . . . 1 Power . | . . . . . . . Propulsion 2 | . . 1 . . . 1 Utility . | . . . . . . . Weapon 1 | . . 1 . . . . Highest Loss Streak 2 | . . 2 . . . 1 To Critical Strikes . | . . . . . . . Average Slot Usage (%) 90 | . 87 96 88 87 91 90 Engine 7 | . 14 11 11 2 . . Core 3 | . . . . 7 7 7 Leg 7 | . 28 1 . . . . Flight 28 | . . 41 44 36 38 38 Device 8 | . 2 11 5 6 13 15 Storage 10 | . 14 11 11 9 7 7 Processor 3 | . . . . 9 7 7 Energy Gun 12 | . 28 12 . 5 7 7 Energy Cannon 1 | . . . . . 4 5 Ballistic Gun 3 | . . 7 11 9 2 . Peak Build Rating 40 | 6 10 18 16 28 36 40 Average Rating 19 | 3 6 15 15 24 34 38 On Entrance 15 | . 6 10 16 14 28 36 Naked Turns . | . . . . . . . Heaviest Build 28 | 12 16 17 14 17 23 28 Greatest Support 33 | 20 20 16 15 19 24 33 Greatest Overweight (x) 1 | . . 1 . . . . Average Overweight (x) . | . . . . . . . Largest Inventory Capacity 10 | 8 8 8 8 8 8 10 Average Capacity 8 | 6 8 8 8 8 8 9 Most Carried 10 | 5 8 8 8 8 8 10 Average Carried 7 | 1 6 7 7 7 7 8 Final Capacity 10 | 8 8 8 8 8 8 10 Final Carried 10 | 1 8 7 8 8 8 10 Class Distribution -------------------- 56% | Sprinter 39% | Mutant 4% | Scavenger-Sprinter Dominant Class ---------------- Mutant | -10/Materials Mutant | -9/Materials Sprinter | -9/Mines Sprinter | -8/Materials Sprinter | -7/Factory Sprinter | -7/Storage Resources | -11 -10 -9 -9 -8 -7 -7 ----------- Run | Yrd Mat Mat Min Mat Fac Sto Matter Collected 482 | 211 133 . 53 . . 85 Remotely . | . . . . . . . Salvage Created 215 | . 195 . . . . 20 Parts 15 | . 12 . . . . 3 Haulers Intercepted . | . . . . . . . Recyclers Shooed . | . . . . . . . Parts Field Recycled . | . . . . . . . Retrieved Matter . | . . . . . . . Parts Self-Destructed . | . . . . . . . Prevented . | . . . . . . . Kills | -11 -10 -9 -9 -8 -7 -7 ------- Run | Yrd Mat Mat Min Mat Fac Sto Combat Hostiles Destroyed 8 | . 8 . . . . . Guns 7 | . 7 . . . . . Classes Destroyed 3 | . 2 . . . . 1 Watcher 1 | . . . . . . 1 Swarmer 6 | . 6 . . . . . Grunt 2 | . 2 . . . . . Best Kill Streak 3 | . 3 . . . . 1 Combat Bots Only 3 | . 3 . . . . . Max Kills in Single Turn 1 | . 1 . . . . 1 Gunslinging . | . . . . . . . Exploded . | . . . . . . . Melee . | . . . . . . . Uniques/NPCs Destroyed . | . . . . . . . Combat | -11 -10 -9 -9 -8 -7 -7 -------- Run | Yrd Mat Mat Min Mat Fac Sto Hostile Shots Fired 154 | . 25 42 . 16 8 63 Missed 64 | . 8 9 . 7 5 35 Damage Taken 981 | . 189 384 . 146 45 217 Core 183 | . 34 83 . 18 15 33 Absorbed by Shields . | . . . . . . . Core Remaining (%) 90 | 100 86 . 79 96 . . Volleys Fired 31 | . 16 5 . . 7 3 Largest 2 | . 2 2 . . 2 2 Hottest 126 | . 115 115 . . 126 126 Shots Fired 61 | . 32 10 . . 14 5 Gun 54 | . 32 10 . . 9 3 Cannon 7 | . . . . . 5 2 Launcher . | . . . . . . . Special . | . . . . . . . Kinetic 5 | . . 3 . . 2 . Thermal 56 | . 32 7 . . 12 5 Explosive . | . . . . . . . Electromagnetic . | . . . . . . . Robot Hit Streak 9 | . 9 5 . . 7 1 Robot Miss Streak 5 | . 2 2 . . 5 1 Penetration Max . | . . . . . . . Secondary Targets 3 | . 3 . . . . . Max Gunslinging Chain 1 | . 1 . . . . . Shots Hit Robots 38 | . 25 7 . . 5 1 Core Hits 13 | . 10 . . . 2 1 Critical Kills . | . . . . . . . Critical Parts Destroyed . | . . . . . . . Critical Strikes 3 | . 3 . . . . . Burn 3 | . 3 . . . . . Melee Attacks . | . . . . . . . Impact . | . . . . . . . Slashing . | . . . . . . . Piercing . | . . . . . . . Sneak Attacks . | . . . . . . . Combat Hostiles . | . . . . . . . Follow-up Attacks . | . . . . . . . Damage Inflicted 538 | . 313 92 . . 107 26 Guns 460 | . 313 92 . . 55 . Cannons 78 | . . . . . 52 26 Explosions . | . . . . . . . Melee . | . . . . . . . Ramming . | . . . . . . . Kinetic 55 | . . 40 . . 15 . Thermal 483 | . 313 52 . . 92 26 Explosive . | . . . . . . . Electromagnetic . | . . . . . . . Impact . | . . . . . . . Slashing . | . . . . . . . Piercing . | . . . . . . . Highest Corruption . | . . . . . . . Average Corruption . | . . . . . . . Corruption Purged . | . . . . . . . Corruption Blocked . | . . . . . . . Overload Shots . | . . . . . . . Overflow Damage 6 | . . . . . 6 . Projectiles 6 | . . . . . 6 . Explosions . | . . . . . . . Melee . | . . . . . . . Knockbacks . | . . . . . . . Impact . | . . . . . . . Kinetic . | . . . . . . . Secondary . | . . . . . . . Self-Inflicted Damage . | . . . . . . . Shots . | . . . . . . . Rammed . | . . . . . . . Targets Rammed . | . . . . . . . Kicked . | . . . . . . . Crushed . | . . . . . . . Highest Temperature 228 | . 228 35 . 181 186 124 Average Temperature 73 | . 92 14 . 70 68 72 Received Heat Transfer 387 | . 33 180 . 81 27 66 Siege Activations . | . . . . . . . Robots Corrupted . | . . . . . . . Combat Hostiles . | . . . . . . . Parts Fried . | . . . . . . . Impact Corruptions . | . . . . . . . Robots Melted 1 | . 1 . . . . . Combat Hostiles 1 | . 1 . . . . . Parts Melted 1 | . 1 . . . . . Heat Transferred 1480 | . 1147 148 . . 148 37 Parts Sabotaged . | . . . . . . . Parts Stolen . | . . . . . . . Parts Stripped . | . . . . . . . Power Chain Reactions . | . . . . . . . Alert | -11 -10 -9 -9 -8 -7 -7 ------- Run | Yrd Mat Mat Min Mat Fac Sto Peak Influence 279 | . 279 142 55 31 149 171 Initial 117 | . . 117 55 21 14 67 Average 102 | . 161 129 55 20 65 144 Maximum Alert Level 1 | . 1 . . . . . Low Security (%) 86 | 100 48 100 100 100 100 100 Level 1 13 | . 51 . . . . . Level 2 . | . . . . . . . Level 3 . | . . . . . . . Level 4 . | . . . . . . . Level 5 . | . . . . . . . High Security . | . . . . . . . Max Security . | . . . . . . . Squads Dispatched 4 | . . 1 . . 3 . Investigation 1 | . . . . . 1 . Extermination . | . . . . . . . Reinforcement 3 | . . 1 . . 2 . Assault . | . . . . . . . Garrison . | . . . . . . . Intercept . | . . . . . . . Searches Triggered . | . . . . . . . Construction Impeded . | . . . . . . . Haulers Reinforced . | . . . . . . . Active Scanning Responses . | . . . . . . . Cargo Convoy Interrupts . | . . . . . . . Stealth | -11 -10 -9 -9 -8 -7 -7 --------- Run | Yrd Mat Mat Min Mat Fac Sto Distress Signals 5 | . 2 . . . 2 1 Communications Jammed . | . . . . . . . Distress Signals . | . . . . . . . Times Spotted 57 | . 16 11 . 14 11 5 Peak Tracking Total 15 | . 7 10 . 15 5 4 Tactical Retreats 2 | . 1 . . . 1 . Traps | -11 -10 -9 -9 -8 -7 -7 ------- Run | Yrd Mat Mat Min Mat Fac Sto Traps Triggered 2 | . 1 . . . 1 . Indirectly . | . . . . . . . Trap Hack Attempts . | . . . . . . . Triggered . | . . . . . . . Disarmed . | . . . . . . . Reprogrammed . | . . . . . . . Reused . | . . . . . . . Traps Extracted . | . . . . . . . Installed . | . . . . . . . Triggered . | . . . . . . . Machines | -11 -10 -9 -9 -8 -7 -7 ---------- Run | Yrd Mat Mat Min Mat Fac Sto Machines Disabled 2 | . . . . . . 2 Max in Single Turn 1 | . . . . . . 1 Machines Repaired . | . . . . . . . Machines Dismantled . | . . . . . . . Machines Sabotaged . | . . . . . . . Overloaded Fab Kills . | . . . . . . . Hacking | -11 -10 -9 -9 -8 -7 -7 --------- Run | Yrd Mat Mat Min Mat Fac Sto Machines Accessed 6 | . 2 1 . . 2 1 Terminals 5 | . 2 1 . . 1 1 Fabricators 1 | . . . . . 1 . Repair Stations . | . . . . . . . Recycling Units . | . . . . . . . Scanalyzers . | . . . . . . . Garrison Access . | . . . . . . . Total Hacks 15 | . 8 1 . . 5 1 Successful 5 | . 2 1 . . 1 1 Failed 10 | . 6 . . . 4 . Catastrophic 6 | . 4 . . . 2 . Database Lockouts . | . . . . . . . Manual . | . . . . . . . Terminals 13 | . 8 1 . . 3 1 Fabricators 2 | . . . . . 2 . Repair Stations . | . . . . . . . Recycling Units . | . . . . . . . Scanalyzers . | . . . . . . . Garrison Access . | . . . . . . . Terminal Hacks 5 | . 2 1 . . 1 1 Prototype ID Bank 1 | . 1 . . . . . Open Door 1 | . . . . . . 1 Alert Level 1 | . . 1 . . . . Hauler Manifests 1 | . . . . . 1 . Registered Prototypes 1 | . 1 . . . . . Fabricator Hacks . | . . . . . . . Repair Station Hacks . | . . . . . . . Recycling Unit Hacks . | . . . . . . . Scanalyzer . | . . . . . . . Garrison Access Hacks . | . . . . . . . Unauthorized Hacks . | . . . . . . . Terminals . | . . . . . . . Fabricators . | . . . . . . . Repair Stations . | . . . . . . . Recycling Units . | . . . . . . . Scanalyzers . | . . . . . . . Garrison Access . | . . . . . . . Data Cores Recovered . | . . . . . . . Used . | . . . . . . . Hacking Detections 4 | . 2 . . . 2 . Full Trace Events 2 | . 1 . . . 1 . Feedback Events . | . . . . . . . Feedback Blocked . | . . . . . . . Robot Schematics Acquired . | . . . . . . . Robots Built . | . . . . . . . Authchips . | . . . . . . . Time . | . . . . . . . Total Robot Build Rating . | . . . . . . . Part Schematics Acquired . | . . . . . . . Parts Built . | . . . . . . . Authchips . | . . . . . . . Time . | . . . . . . . Total Part Build Rating . | . . . . . . . Parts Repaired . | . . . . . . . Time . | . . . . . . . Parts Recycled . | . . . . . . . Recycled Matter . | . . . . . . . Retrieved Matter . | . . . . . . . Retrieved Components . | . . . . . . . Parts Scanalyzed . | . . . . . . . Part Schematics Acquired . | . . . . . . . Parts Damaged . | . . . . . . . Bothacking | -11 -10 -9 -9 -8 -7 -7 ------------ Run | Yrd Mat Mat Min Mat Fac Sto Used RIF Installer . | . . . . . . . Robots Hacked . | . . . . . . . Non-combat . | . . . . . . . Combat . | . . . . . . . Robot Hacks Applied . | . . . . . . . Relay Couplers Released . | . . . . . . . Fabnet Peak Effective % . | . . . . . . . Robots Rewired . | . . . . . . . Allies Hacked . | . . . . . . . Hacks Repelled . | . . . . . . . Allies | -11 -10 -9 -9 -8 -7 -7 -------- Run | Yrd Mat Mat Min Mat Fac Sto Total Allies 1 | . . . 1 . . . Largest Group 1 | . . . 1 1 . . Highest-Rated Group 31 | . . . 31 31 . . Highest-Rated Ally 31 | . . . 31 31 . . Total Orders . | . . . . . . . Ally Attacks 6 | . . . . 6 . . Total Damage . | . . . . . . . Kills . | . . . . . . . Allies Corrupted . | . . . . . . . Allies Melted . | . . . . . . . Intel | -11 -10 -9 -9 -8 -7 -7 ------- Run | Yrd Mat Mat Min Mat Fac Sto Robot Analysis Total . | . . . . . . . Derelict Logs Recovered . | . . . . . . . Drone Launches . | . . . . . . . Drone Recoveries . | . . . . . . . Exploration | -11 -10 -9 -9 -8 -7 -7 ------------- Run | Yrd Mat Mat Min Mat Fac Sto Turns Passed 810 | 46 212 146 75 71 170 90 Spaces Moved 1298 | 39 109 204 119 207 455 165 Core 17 | 17 . . . . . . Treads . | . . . . . . . Legs 131 | 22 109 . . . . . Wheels . | . . . . . . . Hover . | . . . . . . . Flight 1150 | . . 204 119 207 455 165 Fastest Speed 14 | 50 120 26 27 23 23 14 Average Speed 37 | 89 120 46 27 24 23 21 Slowest Speed 120 | 120 120 110 27 27 23 23 Overloaded Moves 111 | . . . . 86 . 25 Propulsion Burnouts . | . . . . . . . Robots Hopped 6 | . . . . . 4 2 Cave-ins Triggered . | . . . . . . . Exploration Rate (%) 21 | 3 16 30 34 29 14 21 Regions Visited 6 Branch Regions 2 Pre-discovered Areas . | . . . . . . . Known Exits Taken 2 | . . . . 1 1 . Unknown Exits Taken 4 | 1 1 1 1 . . . Scrap Searched . | . . . . . . . Spaces Dug . | . . . . . . . Terrain Destroyed . | . . . . . . . Melee . | . . . . . . . Projectile . | . . . . . . . AOE . | . . . . . . . Terrain Rammed . | . . . . . . . Walls Destroyed . | . . . . . . . Machines Disabled . | . . . . . . . Actions | -11 -10 -9 -9 -8 -7 -7 --------- Run | Yrd Mat Mat Min Mat Fac Sto Total 1554 | 49 158 246 161 225 503 212 Wait 101 | . 4 7 41 . 13 36 Move 1280 | 38 108 203 118 206 446 161 Hop 6 | . . . . . 4 2 Pick Up 41 | 5 13 9 . 5 5 4 Fast Attach 12 | 2 2 2 1 3 2 . Attach 12 | 4 . 3 . 2 2 1 Detach 1 | . . . 1 . . . Swap 20 | . 7 7 . 3 1 2 Drop 32 | . 8 10 . 6 5 3 Fire 31 | . 16 5 . . 7 3 Melee . | . . . . . . . Ram . | . . . . . . . Kick . | . . . . . . . Crush . | . . . . . . . Escape Stasis 18 | . . . . . 18 . Rewire . | . . . . . . . Trap . | . . . . . . . Miscellaneous . | . . . . . . . Route ------- -11/Scrapyard -10/Materials -9/Materials -9/Mines -8/Materials -7/Factory -7/Storage History --------- Turn | Location | Event 9 | -11/Scrapyard | Discovered new exit (range 16) 47 | -11/Scrapyard | Entered Materials 128 | -10/Materials | Discovered new exit (range 14) 259 | -10/Materials | Entered another Materials area 259 | -9/Materials | Evolved 2 slots: Propulsion x2 404 | -9/Materials | Discovered new exit (range 6) 405 | -9/Materials | Entered Mines 412 | -9/Mines | Received a Rocket Launcher from a helpful Derelict 434 | -9/Mines | Discovered new exit (range 8) 437 | -9/Mines | Joined a pair of Derelicts in attacking an 0b10 outpost 455 | -9/Mines | Received a Mining Laser from a helpful Derelict 480 | -9/Mines | Entered Materials 480 | -8/Materials | Accompanied by 1 ally 480 | -8/Materials | Evolved 2 slots: Power x1, Utility x1 550 | -8/Materials | Discovered new exit (range 6) 551 | -8/Materials | Identified exit to Factory 551 | -8/Materials | Entered Factory 551 | -7/Factory | Evolved 2 slots: Propulsion x1, Utility x1 559 | -7/Factory | Discovered new exit (range 11) 576 | -7/Factory | Identified exit to Storage 652 | -7/Factory | Build established: Sprinter 721 | -7/Factory | Entered Storage 811 | -7/Storage | Self-destructed Last Messages --------------- LOCATION=STORAGE GOAL=ESCAPE 00724_ W-25 Informer sends out distress signal. 00727_ W-25 Informer destroyed. 00730_ Acquired 20 matter. 00734_ Storage Shell breached. 00737_ Acquired 65 matter. 00749_ Connecting with Door Terminal... >>Open(Door) Sealed Heavy Doors opened. 00749_ Dropped Actuator Array. 00750_ Acquired Prototype Device. 00751_ Identified Gravity Neutralizer. 00752_ Dropped Weight Redist. System. 00756_ Acquired Actuator Array. 00757_ Acquired Weight Redist. System. 00794_ Storage Shell breached. 00797_ Dropped Hvy. Ion Cannon. 00797_ Acquired Hvy. Flail. 00811_ Surge Thruster destroyed. Map ----- +----------------------------------------------------+ | ???????????????????# ########## ###??? | | ???????????????????## ##????????# #????? | | ????????????????????# #?????????# #?? # | | ????????????????????# #?????????# # # | | ????????????????????# ########### + # | | ????????????????????# # ? # # # | | ????????????????????# # """ "" # #?? # | | ????????????????????# # "]! !" + #????? | | ????????????????????# # "]!!/" # #????? | | ????????????????????# + """ "" # #????? | | ????????????????????# # # #????? | | ????????????????????### # # #????? | | ??????????????????????# # # #????? | | ??????????????????????# ########### #????? | | ??????????????????????# #?????????# #????? | | ??????????????????????# ###########!#????? | | ??????????????????????# ! =#????? | | ??????????????????????# a ########????? | | ????????????????"?????# #???????????? | | ??????????????g?g g?k?# #???????????? | | ????????????#######/### r###?????????? | | ??????????? #?????????? | | ??????????? +?????????? | | ??????????? #???a?????? | | ???????????#####+#########+###+#?????????? | | ??????????????????????# @ YY #?????????? | | ??????????????????????# """" #?????????? | | ??????????????????????# "=!" #?????????? | | ??????????????????????# " !" #?????????? | | ????????????????k?????# "!!" #?????????? | | ??????????????????????# "![" #?????????? | | ???????????????????Y??# """Y #?????????? | | ??????????????????????# #?????????? | | ??????????????????????# #?????????? | | ??????????????????????##########?????????? | | ?????????????????????????????????????????? | | ?????????????????????????????????????????? | | ?????????????????????????????????????????? | | ?????????????????????????????????????????? | | ?????????????????????????????????????????? | | ?????????????????????????????????????????? | | ?????????????????????????????????????????? | | ?????????????????????????????????????????? | | ?????????????????????????????????????????? | | ?????????????????????????????????????????? | | ?????????????????????????????????????????? | | ?????????????????????????????????????????? | | ?????????????????????????????????????????? | | ?????????????????????????????????????????? | | ?????????????????????????????????????????? | +----------------------------------------------------+ Best States ------------- Heat Dissipation 42 Energy Generation 19 Energy Capacity 390 Matter Stores 300 Matter Capacity 300 Sight Range 20 Robot Scan Range 15 Terrain Scan Density 10 Additional Mass Support 12 Propulsion Shielding 33 Evasion (%) 66 Item Schematics ----------------- None Robot Schematics ------------------ None Fabricated ------------ Nothing Alien Tech Used ----------------- None Achievements -------------- None Challenges ------------ None Game ------ Seed MappingLatentProjector Manual? 0 Play Time 00:24:24 Cumulative 36.5 hours Start 2024.11.24 @ 21:18:37 End 2024.11.24 @ 21:47:37 Sessions 1 Manual Loads 0 Difficulty Rogue Special Mode None Game No. 65 Rogue 65 Adventurer 0 Explorer 0 Win Type - Total 0 Types 0/0/0/0/0/0/0/0/0 Lore% 14 Gallery% 32 Achievement% 25 Wizard Run 0 Options --------- Layout 1 ASCII 0 Keyboard 0 Movement Mouse Keybinds 0 Fullscreen 2 Font 24/Smallcaps Map View 50x35 Zoom Use 0% Tactical HUD 1 Map Filters NONE Filters NONE Steam 1 RUN: ca4d02f9-0d21-4e5a-af64-5fdd82ff788c